{"text_format":"1","workbook":"xlsx","n_sheets":3,"sheets":["Sheet1","Sheet2","Sheet3"],"not_rendered":{"charts":0,"images":0,"macros":0,"external_links":0,"defined_names":0,"comments":0,"pivot_tables":0},"unopened":[],"bounds":{"document_bytes":16777216,"sheet_cells":100000,"rows_first":2000,"rows_last":500,"rows_between":2000,"halvings":0,"cell_chars":16384,"cell_head_chars":4096},"cells_cut":0,"cells_raw":0,"read":"whole","date_system":"1900"}

{"sheet":"Sheet1","index":0,"n_rows":69,"n_cols":9,"rows_kept":69,"cut":false,"hidden":false,"merged":[[0,1,0,8],[5,1,5,8],[40,1,40,8]]}
[null,"Engineering Process Document Management"]
[null,"Doc Name","MEBT, BPM DOUBLE/TRIPLET, EPDM"]
[null,"Doc #","ED0001310"]
[true,"Does this task require a design?",null,null,null,null,null,null,"Eng Work Procedure Policy"]
[]
[null,"Standard Documentation"]
[null,"Requirement","Document Type","Justification for \"Not Required\"","Author","TC Item #","Rev.","TC File name","Link"]
[null,null,"Requirements and Specifications"]
[null,"REQUIRED","Functional Requirements Specification (FRS)",null,"Alexander Shemyakin","ED*3675","-","ED0001309---FRS.docx",{"$f":"HYPERLINK(CONCATENATE(\"/tc/webdav/itemid-\",F9,\"/\",G9,\"/\",H9),\"Teamcenter File Link\")","v":"Teamcenter File Link"}]
[false,null,"Statement of Work (SOW)",null,null,null,null,null,{"$f":"HYPERLINK(CONCATENATE(\"/tc/webdav/itemid-\",F10,\"/\",G10,\"/\",H10),\"Teamcenter File Link\")","v":"Teamcenter File Link"}]
[null,null,"Engineering Risk Assessment"]
[false,null,"Project Management Plan (PMP)",null,null,null,null,null,"Teamcenter File Link"]
[null,"REQUIRED","Risk Assessment",null,"Matthew Alvarez","ED*6920",null,null,"Teamcenter File Link"]
[null,null,"Requirements and Specifications Review"]
[false,null,"Technical Requirements Specification (TRS)",null,null,null,null,null,"Teamcenter File Link"]
[false,null,"Specification Review",null,null,null,null,null,"Teamcenter File Link"]
[null,null,"System Design"]
[null,{"$f":"IF($A$4=TRUE,\"RECOMMENDED\",\"\")","v":"RECOMMENDED"},"Technical Design Report (TDR)",null,"none",null,null,null,"Teamcenter File Link"]
[null,{"$f":"IF($A$4=TRUE,\"REQUIRED\",\"\")","v":"REQUIRED"},"Preliminary Design Review (PDR)",null,"none",null,null,null,"Teamcenter File Link"]
[false,null,"Systems Integration Review (SIR)",null,null,null,null,null,"Teamcenter File Link"]
[null,{"$f":"IF($A$4=TRUE,\"REQUIRED\",\"\")","v":"REQUIRED"},"Final Design Review (FDR)",null,"Matthew Alvarez","ED*6921",null,null,"Teamcenter File Link"]
[null,null,"Procurement and Implementation"]
[false,null,"Procurement Plan (PP)",null,null,null,null,null,"Teamcenter File Link"]
[false,null,"Request for Inforation (RFI)",null,null,null,null,null,"Teamcenter File Link"]
[false,null,"Procurement Specification(s) (PS)",null,null,null,null,null,"Teamcenter File Link"]
[false,null,"Technical Questionnaire(s) (TQ)",null,null,null,null,null,"Teamcenter File Link"]
[false,null,"Procurement Readiness Review (PRR)",null,null,null,null,null,"Teamcenter File Link"]
[false,null,"Request for Proposals (RFP)",null,null,null,null,null,"Teamcenter File Link"]
[false,null,"Vendor Proposals Review (VPR)",null,null,null,null,null,"Teamcenter File Link"]
[false,null,"Vendor Selection (VS)",null,null,null,null,null,"Teamcenter File Link"]
[false,null,"Vendor Fabrication Review (VFR)",null,null,null,null,null,"Teamcenter File Link"]
[false,null,"Fabrication Acceptance Test (FAT)",null,null,null,null,null,"Teamcenter File Link"]
[null,"REQUIRED","Performance Acceptance Test (PAT)",null,null,null,null,null,"Teamcenter File Link"]
[null,null,"Release to Operations"]
[false,null,"Installation Plan (IP)",null,null,null,null,null,"Teamcenter File Link"]
[false,null,"Safety Review (SR)",null,null,null,null,null,"Teamcenter File Link"]
[false,null,"Commissioning Plan (CP)",null,null,null,null,null,"Teamcenter File Link"]
[null,null,"Reviews"]
[false,null,"Operational Readiness Clearance (ORC) Review",null,null,null,null,null,"Teamcenter File Link"]
[]
[null,"Supporting Documentation"]
[null,"Requirement","Document Type","Justification for \"Not Required\"","Author","TC Item #","Rev.","TC File name","Link"]
[null,null,"Requirements and Specifications"]
[null,null,null,null,null,null,null,null,{"$f":"HYPERLINK(CONCATENATE(\"/tc/webdav/itemid-\",F44,\"/\",G44,\"/\",H44),\"Teamcenter File Link\")","v":"Teamcenter File Link"}]
[null,null,null,null,null,null,null,null,"Teamcenter File Link"]
[null,null,"Engineering Risk Assessment"]
[null,null,null,null,null,null,null,null,"Teamcenter File Link"]
[null,null,null,null,null,null,null,null,"Teamcenter File Link"]
[null,null,"Requirements and Specifications Review"]
[null,null,null,null,null,null,null,null,"Teamcenter File Link"]
[null,null,null,null,null,null,null,null,"Teamcenter File Link"]
[null,null,"System Design"]
[null,null,"Drawing",null,null,"F1*18276",null,"TRIPLET","Teamcenter File Link"]
[null,null,null,null,null,"f1*7567",null,"DOUBLET","Teamcenter File Link"]
[null,null,"Engineering Design Review"]
[null,null,null,null,null,null,null,null,"Teamcenter File Link"]
[null,null,null,null,null,null,null,null,"Teamcenter File Link"]
[null,null,"Procurement and Implementation"]
[null,null,null,null,null,null,null,null,"Teamcenter File Link"]
[null,null,null,null,null,null,null,null,"Teamcenter File Link"]
[null,null,"Testing and Validation"]
[null,null,null,null,null,null,null,null,"Teamcenter File Link"]
[null,null,null,null,null,null,null,null,"Teamcenter File Link"]
[null,null,"Release to Operations"]
[null,null,null,null,null,null,null,null,"Teamcenter File Link"]
[null,null,null,null,null,null,null,null,"Teamcenter File Link"]
[null,null,"Final Documentation"]
[null,null,null,null,null,"ED*6925",null,"DOUBLET/TRIPLET","Teamcenter File Link"]
[null,"one Note notebook/Access required for downloading",null,null,null,null,null,"https://fermicloud-my.sharepoint.com/personal/malvare4_services_fnal_gov/_layouts/15/guestaccess.aspx?guestaccesstoken=Elw0uTCO2xwP4vLXm5lwxXIXuSknQu%2fsU58LbHZoD8k%3d&folderid=01e193935aa774442aede23d2f19620bd&rev=1","Teamcenter File Link"]

{"sheet":"Sheet2","index":1,"n_rows":0,"n_cols":0,"rows_kept":0,"cut":false,"hidden":false,"merged":[]}

{"sheet":"Sheet3","index":2,"n_rows":0,"n_cols":0,"rows_kept":0,"cut":false,"hidden":false,"merged":[]}